Cogmind - Beta 15 @@@ ROGUE MODE // 2025.09.19 @ 22:28:35 Player: Lillith Result: Destroyed by FC-3DG(R) with Subdweller Beam Cannon Performance ------------- Evolutions (0) 0 Regions Visited (2) 400 Robots Destroyed (31) 155 Value Destroyed (768) 768 Prototype IDs (2) 40 Alien Tech Used (0) 0 Bonus (0) 0 TOTAL SCORE: 1363 Bonus ------- None Cogmind --------- Core Integrity 0/250 Matter 183/300 Energy 200/200 System Corruption 0% Temperature Cool (9) Movement Rolling (120) Ox1 Location -10/Subcaves Parts ------- > --- POWER (1) -------- Subdweller Power Source > --- PROPULSION (2) --- Spiked Treads Subdweller Monowheel > --- UTILITY (2) ------ Large Storage Unit Light Armor Plating > --- WEAPON (2) ------- Light Cannon Light Cannon > --- INVENTORY (15) --- Light Treads Subdweller Optics Seismic Detector Scrap Shield Hacking Suite Makeshift System Shield Subdweller Laser Subdweller Laser Subdweller Beam Cannon Mini Grenade Launcher Ripper Peak State ------------ > --- POWER ------------ Light Ion Engine > --- PROPULSION ------- Spiked Treads Wheel > --- UTILITY ---------- Large Storage Unit Seismic Detector > --- WEAPON ----------- Light Cannon Ripper > --- INVENTORY -------- Subdweller Power Source Light Treads Light Treads Spiked Treads High-capacity Matter Pod Subdweller Optics Light Armor Plating Light Armor Plating Hacking Suite Makeshift System Shield Subdweller Laser Subdweller Laser Light Cannon Mini Grenade Launcher Plasma Cutter [Rating: 13] Favorites ----------- Power Light Ion Engine Engine Light Ion Engine Propulsion Wheel Treads Spiked Treads Wheel Wheel Utility Large Storage Unit Device Seismic Detector Storage Large Storage Unit Protection Light Armor Plating Weapon Light Cannon Energy Gun EM Pulse Gun Ballistic Gun Shotgun Ballistic Cannon Light Cannon Launcher Mini Grenade Launcher Special Weapon Plasma Cutter Slashing Weapon Ripper Build | -11 -10 -10 ------- Run | Yrd Mat Sub Slots Evolved . | . . . Power . | . . . Propulsion . | . . . Utility . | . . . Weapon . | . . . Parts Attached 23 | 8 6 9 Power 2 | 1 . 1 Engine 2 | 1 . 1 Core . | . . . Reactor . | . . . Propulsion 6 | 2 . 4 Treads 3 | 1 . 2 Leg . | . . . Wheel 3 | 1 . 2 Hover . | . . . Flight . | . . . Utility 5 | 2 2 1 Device 1 | 1 . . Storage 2 | 1 1 . Processor . | . . . Hackware . | . . . Protection 2 | . 1 1 Artifact . | . . . Weapon 10 | 3 4 3 Energy Gun 2 | 2 . . Energy Cannon . | . . . Ballistic Gun 3 | 1 2 . Ballistic Cannon 2 | . 2 . Launcher 1 | . . 1 Special Weapon 1 | . . 1 Impact Weapon . | . . . Slashing Weapon 1 | . . 1 Piercing Weapon . | . . . Special Melee Weapon . | . . . Unidentified Prototypes . | . . . Parts Lost 4 | . . 4 Power 1 | . . 1 Propulsion 2 | . . 2 Utility 1 | . . 1 Weapon . | . . . Highest Loss Streak 3 | . . 3 To Critical Strikes . | . . . Average Backups 13 | 3 13 14 Power . | . 1 . Propulsion 3 | 2 4 2 Utility 4 | . 3 5 Weapon 4 | . 4 4 Tool/Special . | . . . Unused Backups 21 | . 7 14 Power 1 | . . 1 Propulsion 6 | . 2 4 Utility 7 | . 2 5 Weapon 7 | . 3 4 Tool/Special . | . . . Average Slot Usage (%) 99 | . 99 99 Engine 13 | . 14 13 Treads 13 | . 13 14 Wheel 14 | . 14 14 Device 10 | . 12 10 Storage 14 | . 14 14 Protection 3 | . 1 3 Energy Gun 1 | . 4 . Ballistic Cannon 23 | . 23 24 Slashing Weapon 2 | . . 3 Peak Build Rating 13 | 7 10 13 Average Rating 10 | 5 8 11 On Entrance 5 | . 7 9 Naked Turns . | . . . Heaviest Build 34 | 13 32 34 Greatest Support 20 | 20 20 20 Greatest Overweight (x) 3 | 1 3 2 Average Overweight (x) 1 | . 1 1 Largest Inventory Capacity 15 | 8 15 15 Average Capacity 14 | 7 14 15 Most Carried 15 | 7 15 15 Average Carried 14 | 3 14 14 Final Capacity 15 | 8 15 15 Final Carried 15 | 7 15 12 Class Distribution -------------------- 100% | Mutant Dominant Class ---------------- Mutant | -10/Materials Mutant | -10/Subcaves Resources | -11 -10 -10 ----------- Run | Yrd Mat Sub Matter Collected 1412 | 299 491 622 Remotely . | . . . Salvage Created 877 | 21 604 252 Parts 56 | 4 38 14 Haulers Intercepted 2 | . 2 . Recyclers Shooed 2 | 1 1 . Parts Field Recycled . | . . . Retrieved Matter . | . . . Parts Self-Destructed 3 | . . 3 Prevented . | . . . Kills | -11 -10 -10 ------- Run | Yrd Mat Sub Combat Hostiles Destroyed 19 | . 9 10 Guns 2 | . 2 . Cannons 12 | . 7 5 AOE 5 | . . 5 Classes Destroyed 9 | 1 5 3 Tunneler 1 | 1 . . Hauler 2 | . 2 . Recycler 2 | . 2 . Operator 2 | . 2 . Turret 2 | . . 2 Watcher 3 | . 3 . Swarmer 5 | . . 5 Grunt 9 | . 9 . Subdweller 5 | . . 5 Best Kill Streak 6 | 1 4 6 Combat Bots Only 4 | . 2 4 Max Kills in Single Turn 3 | 1 1 3 Gunslinging . | . . . Exploded 3 | . . 3 Melee . | . . . Uniques/NPCs Destroyed . | . . . Combat | -11 -10 -10 -------- Run | Yrd Mat Sub Hostile Shots Fired 137 | . 20 117 Missed 60 | . 6 54 Hits 77 | . 14 63 Projectile 77 | . 14 63 Critical Strikes 2 | . 1 1 Damage Taken 1004 | . 176 828 Core 255 | . 36 219 Absorbed by Shields . | . . . Regen/Repaired (Parts) 38 | . 38 . Core Remaining (%) 100 | 100 . . Volleys Fired 107 | 5 39 63 Largest 2 | 2 2 2 Hottest 80 | 80 80 60 Shots Fired 198 | 7 78 113 Gun 29 | 7 20 2 Cannon 159 | . 58 101 Launcher 5 | . . 5 Special 5 | . . 5 Kinetic 168 | 3 62 103 Thermal 5 | . . 5 Explosive 5 | . . 5 Electromagnetic 20 | 4 16 . Robot Hit Streak 22 | 3 10 22 Robot Miss Streak 5 | 2 5 2 Penetration Max . | . . . Secondary Targets 1 | . 1 . Max Gunslinging Chain 1 | . 1 . Shots Hit Robots 116 | 4 45 67 Core Hits 51 | 1 24 26 Critical Kills . | . . . Critical Parts Destroyed . | . . . Critical Strikes 7 | . 3 4 Blast 7 | . 3 4 Melee Attacks 10 | . . 10 Impact . | . . . Slashing 10 | . . 10 Piercing . | . . . Sneak Attacks . | . . . Combat Hostiles . | . . . Follow-up Attacks . | . . . Damage Inflicted 2187 | 52 728 1407 Guns 235 | 52 183 . Cannons 1723 | . 545 1178 Explosions 229 | . . 229 Melee . | . . . Ramming . | . . . Kinetic 1782 | 39 565 1178 Thermal . | . . . Explosive 229 | . . 229 Electromagnetic 176 | 13 163 . Impact . | . . . Slashing . | . . . Piercing . | . . . Highest Corruption . | . . . Average Corruption . | . . . Corruption Purged . | . . . Corruption Blocked . | . . . Overload Shots . | . . . Overflow Damage . | . . . Projectiles . | . . . Explosions . | . . . Melee . | . . . Knockbacks 13 | . 6 7 Impact . | . . . Kinetic 12 | . 5 7 Secondary 1 | . 1 . Self-Inflicted Damage 13 | . . 13 Shots 1 | . . 1 Rammed . | . . . Targets Rammed . | . . . Kicked . | . . . Crushed . | . . . Highest Temperature 180 | 36 180 13 Average Temperature 50 | 20 56 5 Received Heat Transfer 414 | . 123 291 Siege Activations . | . . . Martial Activations . | . . . Shielding Activations . | . . . Robots Disrupted . | . . . Combat Hostiles . | . . . Robots Corrupted . | . . . Combat Hostiles . | . . . Parts Fried . | . . . Impact Corruptions . | . . . Robots Melted . | . . . Combat Hostiles . | . . . Parts Melted . | . . . Heat Transferred . | . . . Parts Sabotaged . | . . . Parts Stolen . | . . . Parts Stripped . | . . . Power Chain Reactions . | . . . Alert | -11 -10 -10 ------- Run | Yrd Mat Sub Maximum Alert Level . | . . . Low Security (%) 100 | 100 100 . Level 1 . | . . . Level 2 . | . . . Level 3 . | . . . Level 4 . | . . . Level 5 . | . . . High Security . | . . . Max Security . | . . . Peak Influence 141 | 5 141 . Initial . | . . . Average 44 | . 47 . Influence Increases 571 | 5 381 185 Destroy 0b10 Robot/C 320 | . 180 140 Destroy 0b10 Robot/NC 50 | 5 45 . Destroy Leader 60 | . 60 . Successful Hack 18 | . 18 . Select Force Hacks 30 | . 30 . Disable Machine 15 | . 15 . Destroy Structure 3 | . 3 . Lose Combat Pursuer 75 | . 30 45 Influence Decreases 503 | 5 381 117 Time Decay 463 | 5 381 77 Lost Part 40 | . . 40 Squads Dispatched 2 | . 2 . Investigation 1 | . 1 . Extermination . | . . . Reinforcement 1 | . 1 . Assault . | . . . Garrison . | . . . Intercept . | . . . Searches Triggered . | . . . Construction Impeded . | . . . Haulers Reinforced . | . . . Active Scanning Responses . | . . . Cargo Convoy Interrupts . | . . . Stealth | -11 -10 -10 --------- Run | Yrd Mat Sub Distress Signals 2 | . 2 . Communications Jammed . | . . . Distress Signals . | . . . Times Spotted 32 | . 18 14 Peak Tracking Total 6 | . 3 6 Tactical Retreats 3 | . 1 2 Traps | -11 -10 -10 ------- Run | Yrd Mat Sub Traps Triggered 1 | . . 1 Indirectly . | . . . Trap Hack Attempts . | . . . Triggered . | . . . Disarmed . | . . . Reprogrammed . | . . . Reused . | . . . Traps Extracted . | . . . Installed . | . . . Triggered . | . . . Machines | -11 -10 -10 ---------- Run | Yrd Mat Sub Machines Disabled 3 | . 1 2 Max in Single Turn 1 | . 1 1 Machines Repaired . | . . . Machines Dismantled . | . . . Machines Sabotaged . | . . . Overloaded Fab Kills . | . . . Hacking | -11 -10 -10 --------- Run | Yrd Mat Sub Machines Accessed 9 | . 8 1 Terminals 6 | . 6 . Fabricators . | . . . Repair Stations 1 | . 1 . Recycling Units 1 | . 1 . Scanalyzers . | . . . Garrison Access . | . . . Total Hacks 23 | . 18 5 Successful 12 | . 7 5 Failed 11 | . 11 . Catastrophic 2 | . 2 . Database Lockouts . | . . . Manual 4 | . 4 . Terminals 13 | . 13 . Fabricators . | . . . Repair Stations 3 | . 3 . Recycling Units 2 | . 2 . Scanalyzers . | . . . Garrison Access . | . . . Terminal Hacks 9 | . 4 5 Record 5 | . . 5 Robot Analysis 1 | . 1 . Prototype ID Bank 1 | . 1 . Locate Traps 1 | . 1 . Zone Layout 1 | . 1 . Fabricator Hacks . | . . . Repair Station Hacks 2 | . 2 . Scan Component 1 | . 1 . Repair 1 | . 1 . Recycling Unit Hacks . | . . . Scanalyzer . | . . . Garrison Access Hacks . | . . . Unauthorized Hacks 1 | . 1 . Terminals . | . . . Fabricators . | . . . Repair Stations . | . . . Recycling Units 1 | . 1 . Tunnel 1 | . 1 . Scanalyzers . | . . . Garrison Access . | . . . Data Cores Recovered 1 | . 1 . Used . | . . . Hacking Detections 7 | . 7 . Full Trace Events 1 | . 1 . Feedback Events . | . . . Feedback Blocked . | . . . Robot Schematics Acquired . | . . . Robots Built . | . . . Authchips . | . . . Time . | . . . Total Robot Build Rating . | . . . Part Schematics Acquired . | . . . Parts Built . | . . . Authchips . | . . . Time . | . . . Total Part Build Rating . | . . . Parts Repaired 1 | . 1 . Time 26 | . 26 . Parts Recycled . | . . . Recycled Matter . | . . . Retrieved Matter . | . . . Retrieved Components . | . . . Parts Scanalyzed . | . . . Part Schematics Acquired . | . . . Parts Damaged . | . . . Bothacking | -11 -10 -10 ------------ Run | Yrd Mat Sub Used RIF Installer . | . . . Robots Hacked . | . . . Non-combat . | . . . Combat . | . . . Robot Hacks Applied . | . . . Relay Couplers Released . | . . . Fabnet Peak Effective % . | . . . Robots Rewired . | . . . Allies Hacked . | . . . Hacks Repelled . | . . . Allies | -11 -10 -10 -------- Run | Yrd Mat Sub Total Allies . | . . . Largest Group . | . . . Highest-Rated Group . | . . . Highest-Rated Ally . | . . . Total Orders . | . . . Ally Attacks . | . . . Total Damage . | . . . Kills . | . . . Allies Corrupted . | . . . Allies Melted . | . . . Intel | -11 -10 -10 ------- Run | Yrd Mat Sub Active Infowar (turns) 3151 | 18 1051 2082 Seismic 3151 | 18 1051 2082 Robot Analysis Total 1 | . 1 . Derelict Logs Recovered 1 | . . 1 Drone Launches . | . . . Drone Recoveries . | . . . Exploration | -11 -10 -10 ------------- Run | Yrd Mat Sub Turns Passed 4117 | 97 1213 2807 Spaces Moved 1911 | 64 705 1142 Core 1 | 1 . . Treads 945 | 8 122 815 Legs . | . . . Wheels 965 | 55 583 327 Hover . | . . . Flight . | . . . Fastest Speed 50 | 50 95 110 Average Speed 182 | 100 133 217 Slowest Speed 260 | 160 240 260 Overloaded Moves . | . . . Propulsion Burnouts . | . . . Robots Hopped . | . . . Potential Cave-ins . | . . . Cave-ins Triggered . | . . . Exploration Rate (%) 54 | 4 95 63 Regions Visited 2 Branch Regions 1 Pre-discovered Areas 2 | . 1 1 Known Exits Taken . | . . . Unknown Exits Taken 2 | 1 1 . Scrap Searched 11 | . . 11 Spaces Dug 6 | . . 6 Terrain Destroyed 44 | . . 44 Melee 4 | . . 4 Projectile 3 | . . 3 AOE 37 | . . 37 Terrain Rammed . | . . . Walls Destroyed . | . . . Machines Disabled . | . . . Actions | -11 -10 -10 --------- Run | Yrd Mat Sub Total 2317 | 85 904 1328 Wait 191 | . 123 68 Move 1909 | 63 704 1142 Hop . | . . . Pick Up 33 | 6 17 10 Fast Attach 9 | 8 1 . Attach 6 | . 2 4 Detach 2 | 1 1 . Swap 28 | 2 7 19 Drop 22 | . 10 12 Fire 107 | 5 39 63 Melee 10 | . . 10 Ram . | . . . Kick . | . . . Crush . | . . . Escape Stasis . | . . . Rewire . | . . . Trap . | . . . Miscellaneous . | . . . Route ------- -11/Scrapyard -10/Materials (discovered 5 exits: [*Mat x3] / [*Min] / *Sub) -10/Subcaves (discovered 3 exits: Mat x2 / *Rec) History --------- Turn | Location | Event 9 | -11/Scrapyard | Discovered new exit (range 15) 98 | -11/Scrapyard | Entered Materials 305 | -10/Materials | Build established: Mutant 439 | -10/Materials | Discovered new exit (range 16) 620 | -10/Materials | Discovered new exit (range 11) 729 | -10/Materials | Discovered new exit (range 16) 967 | -10/Materials | Discovered new exit (range 12) 1013 | -10/Materials | Repaired Lgt. Treads 1278 | -10/Materials | Discovered new exit (range 10) 1311 | -10/Materials | Entered Subcaves 1580 | -10/Subcaves | Shifting Twisted Machinery released Shrapnel Trap 2517 | -10/Subcaves | A swath of the cavern ceiling suddenly collapsed 3288 | -10/Subcaves | Learned 2 Materials zone layouts 3428 | -10/Subcaves | Visited Clippyterm 3436 | -10/Subcaves | Identified exit to Materials 3436 | -10/Subcaves | Identified exit to Recycling 3436 | -10/Subcaves | Learned location of Deep Caves (-7) 3581 | -10/Subcaves | Core integrity fell below 50% 4092 | -10/Subcaves | Core integrity fell below 20% 4118 | -10/Subcaves | Destroyed by FC-3DG(R) with Subdweller Beam Cannon Last Messages --------------- 03959_ Searching scrap... 03959_ Found Barrage Gun. 03959_ Found 60 Matter. 03963_ Searching scrap... 03963_ Found Sub. Beam Cannon. 03963_ Found 55 Matter. 04065_ L0-F10(R) knocked back. 04068_ Lgt. Ion Engine destroyed. 04071_ L0-F10(R) destroyed. 04075_ Acquired 10 matter. 04076_ Q7-17A(R) knocked back. 04079_ Q7-17A(R) destroyed. 04082_ Acquired 3 matter. 04083_ Acquired 9 matter. 04090_ Spk. Treads destroyed. 04097_ 1E-1YY(R) knocked back. 04100_ 1E-1YY(R) Sub. Power Source blasted off. 04100_ 1E-1YY(R) destroyed. 04103_ FC-3DG(R) knocked back. 04106_ Sub. Monowheel destroyed. Map ----- +----------------------------------------------------+ | ?????????????????????????????????????????????????? | | ?????????????????????????????????????????????????? | | ?????????????????????????????????????????????????? | | ?????????????????????????????????????????????????? | | ?????????????????????????????????????????????????? | | ?????????????????????????????????????????????????? | | ?????????????????????? ??????????????????????????? | | ?????????????????????? ??????????????????????????? | | ?????????????????????? ??????????????????????????? | | ?????????????????????? ??????????????????????????? | | ?????????????????????? ??????????????????????????? | | ?????????????????????? ###???????????????????????? | | ?????????????????????? ???????????????????????? | | ?????????????????????? "##?????????????????????? | | ?????????????#???????? ""#?????????????????????? | | ?????